[Event "FIDE WCCC Open-12 2024"]
[Site "Montesilvano"]
[Date "2024.11.18"]
[Round "1.65"]
[White "Bundan, Edward"]
[Black "Mamarasulov, Husan"]
[Result "1-0"]
[ECO "B76"]
[WhiteElo "1905"]
[BlackElo "1407"]
[PlyCount "47"]
[EventDate "2024.11.18"]
[EventType "swiss"]
[EventCountry "ITA"]
[TimeControl "5400+30"]

1. e4 {[%emt 0:00:03]} c5 {[%emt 0:00:06]} 2. Nf3 {[%emt 0:00:11]} d6 {[%emt 0:00:06]} 3. d4 {[%emt 0:00:08]} cxd4 {[%emt 0:00:06]} 4. Nxd4 {[%emt 0:00:07]} Nf6 {[%emt 0:00:09]} 5. Nc3 {[%emt 0:00:14]} g6 {[%emt 0:00:04]} 6. Be2 {[%emt 0:00:53]} Bg7 {[%emt 0:01:50]} 7. Be3 {[%emt 0:01:03]} Nc6 {[%emt 0:00:09]} 8. f3 {[%emt 0:04:19]} O-O {[%emt 0:02:35]} 9. Qd2 {[%emt 0:02:35]} Bd7 {[%emt 0:01:36]} 10. O-O-O {[%emt 0:01:08]} Kh8 {[%emt 0:05:19]} 11. h4 {[%emt 0:01:05]} Nh5 {[%emt 0:01:44]} 12. Nxc6 {[%emt 0:09:42]} Bxc6 {[%emt 0:03:30]} 13. g4 {[%emt 0:02:06]} Bxc3 {[%emt 0:03:23]} 14. Qxc3+ {[%emt 0:00:09]} Ng7 {[%emt 0:00:10]} 15. h5 {[%emt 0:01:24]} gxh5 {[%emt 0:01:14]} 16. Rxh5 {[%emt 0:05:02]} e5 {[%emt 0:01:46]} 17. Rh6 {[%emt 0:01:28]} f6 {[%emt 0:00:58]} 18. Rdh1 {[%emt 0:00:32]} Kg8 {[%emt 0:01:32]} 19. Rxh7 {[%emt 0:00:33]} Rc8 {[%emt 0:06:01]} 20. Qb3+ {[%emt 0:07:09]} d5 {[%emt 0:05:18]} 21. Bc5 {[%emt 0:01:51]} Re8 {[%emt 0:02:19]} 22. Qe3 {[%emt 0:11:20]} Qa5 {[%emt 0:04:08]} 23. Qh6 {[%emt 0:01:44]} Rc7 {[%emt 0:01:32]} 24. Qxf6 {[%emt 0:00:23]} 1-0

[Event "FIDE WCCC Open-12 2024"]
[Site "Montesilvano"]
[Date "2024.11.18"]
[Round "1.71"]
[White "Fadeev, Justin Michael"]
[Black "Sharafutdinov, Timur"]
[Result "1-0"]
[ECO "C56"]
[WhiteElo "1878"]
[BlackElo "1925"]
[PlyCount "93"]
[EventDate "2024.11.18"]
[EventType "swiss"]
[EventCountry "ITA"]
[TimeControl "5400+30"]

1. e4 {[%emt 0:00:02]} e5 {[%emt 0:00:08]} 2. Nf3 {[%emt 0:00:01]} Nc6 {[%emt 0:00:06]} 3. d4 {[%emt 0:00:08]} exd4 {[%emt 0:00:18]} 4. Bc4 {[%emt 0:00:04]} Nf6 {[%emt 0:02:33]} 5. e5 {[%emt 0:00:20]} d5 {[%emt 0:01:59]} 6. Bb5 {[%emt 0:00:08]} Bb4+ {[%emt 0:02:54]} 7. c3 {[%emt 0:01:29]} dxc3 {[%emt 0:03:22]} 8. bxc3 {[%emt 0:00:13]} Qe7 {[%emt 0:01:37]} 9. O-O {[%emt 0:01:21]} Ne4 {[%emt 0:03:21]} 10. cxb4 {[%emt 0:01:28]} Be6 {[%emt 0:01:22]} 11. Ba3 {[%emt 0:01:06]} O-O {[%emt 0:02:01]} 12. Bxc6 {[%emt 0:00:32]} bxc6 {[%emt 0:00:03]} 13. Nd4 {[%emt 0:01:29]} Bd7 {[%emt 0:04:25]} 14. f3 {[%emt 0:01:27]} Ng5 {[%emt 0:02:02]} 15. f4 {[%emt 0:01:38]} Ne4 {[%emt 0:01:52]} 16. Qc2 {[%emt 0:02:05]} c5 {[%emt 0:09:43]} 17. bxc5 {[%emt 0:01:32]} c6 {[%emt 0:00:27]} 18. Nc3 {[%emt 0:00:53]} f5 {[%emt 0:05:16]} 19. Rab1 {[%emt 0:03:00]} Rab8 {[%emt 0:02:30]} 20. Nxe4 {[%emt 0:09:18]} fxe4 {[%emt 0:00:39]} 21. Rxb8 {[%emt 0:00:18]} Rxb8 {[%emt 0:00:05]} 22. Rb1 {[%emt 0:01:26]} Qf8 {[%emt 0:01:08]} 23. e6 {[%emt 0:05:02]} Rxb1+ {[%emt 0:08:56]} 24. Qxb1 {[%emt 0:00:09]} Be8 {[%emt 0:01:48]} 25. Qb8 {[%emt 0:00:32]} Qe7 {[%emt 0:01:26]} 26. Nf5 {[%emt 0:02:20]} Qxe6 {[%emt 0:00:39]} 27. Nd6 {[%emt 0:00:05]} Kf8 {[%emt 0:01:09]} 28. Bb2 {[%emt 0:00:38]} e3 {[%emt 0:02:28]} 29. Qxe8+ {[%emt 0:00:15]} Qxe8 {[%emt 0:00:12]} 30. Nxe8 {[%emt 0:00:03]} Kxe8 {[%emt 0:00:44]} 31. Bxg7 {[%emt 0:00:13]} h6 {[%emt 0:00:34]} 32. Bd4 {[%emt 0:00:12]} e2 {[%emt 0:00:13]} 33. Kf2 {[%emt 0:00:04]} e1=Q+ {[%emt 0:41:00]} 34. Kxe1 {[%emt 0:00:03]} Kf7 {[%emt 0:00:00]} 35. f5 {[%emt 0:00:05]} a5 {[%emt 0:00:00]} 36. f6 {[%emt 0:00:08]} a4 {[%emt 0:00:00]} 37. g4 {[%emt 0:00:04]} Kg8 {[%emt 0:00:00]} 38. h4 {[%emt 0:00:04]} h5 {[%emt 0:00:00]} 39. gxh5 {[%emt 0:00:05]} a3 {[%emt 0:00:00]} 40. h6 {[%emt 0:00:06]} Kf7 {[%emt 0:00:00]} 41. h7 {[%emt 0:00:15]} Kg6 {[%emt 0:00:00]} 42. h8=Q {[%emt 0:00:09]} Kf5 {[%emt 0:00:00]} 43. f7 {[%emt 0:00:11]} Ke4 {[%emt 0:00:00]} 44. f8=Q {[%emt 0:00:11]} Kd3 {[%emt 0:00:00]} 45. Qf3+ {[%emt 0:00:06]} Kc2 {[%emt 0:00:00]} 46. Qh7+ {[%emt 0:00:18]} Kc1 {[%emt 0:00:00]} 47. Qc3# {[%emt 1:12:44]} 1-0

[Event "FIDE WCCC Open-12 2024"]
[Site "Montesilvano"]
[Date "2024.11.18"]
[Round "1.72"]
[White "Stefanov, Stefan"]
[Black "Gazzato, Nicolo`"]
[Result "1/2-1/2"]
[ECO "D95"]
[WhiteElo "1478"]
[BlackElo "1868"]
[PlyCount "49"]
[EventDate "2024.11.18"]
[EventType "swiss"]
[EventCountry "ITA"]
[TimeControl "5400+30"]

1. d4 {[%emt 0:00:06]} Nf6 {[%emt 0:00:15]} 2. Nf3 {[%emt 0:00:04]} g6 {[%emt 0:00:12]} 3. c4 {[%emt 0:00:03]} Bg7 {[%emt 0:00:06]} 4. Nc3 {[%emt 0:00:09]} d5 {[%emt 0:00:06]} 5. e3 {[%emt 0:00:12]} O-O {[%emt 0:00:50]} 6. Qb3 {[%emt 0:00:07]} c6 {[%emt 0:06:11]} 7. Bd2 {[%emt 0:00:06]} Re8 {[%emt 0:11:03]} 8. Rc1 {[%emt 0:00:12]} dxc4 {[%emt 0:02:47]} 9. Bxc4 {[%emt 0:01:50]} e6 {[%emt 0:00:59]} 10. Ne5 {[%emt 0:00:43]} Nbd7 {[%emt 0:05:35]} 11. Nxd7 {[%emt 1:32:28]} Nxd7 {[%emt 0:06:02]} 12. O-O {[%emt 0:00:00]} Nb6 {[%emt 0:08:15]} 13. Be2 {[%emt 0:00:00]} e5 {[%emt 0:03:40]} 14. dxe5 {[%emt 0:00:00]} Be6 {[%emt 0:01:31]} 15. Qc2 {[%emt 0:00:00]} Bxe5 {[%emt 0:00:58]} 16. f4 {[%emt 0:00:00]} Bf5 {[%emt 0:08:01]} 17. Qd1 {[%emt 0:00:00]} Bxc3 {[%emt 0:10:14]} 18. Rxc3 {[%emt 0:00:00]} Qd5 {[%emt 0:04:17]} 19. Rb3 {[%emt 0:00:00]} Rad8 {[%emt 0:01:13]} 20. Bc1 {[%emt 0:00:00]} Qxd1 {[%emt 0:08:47]} 21. Rxd1 {[%emt 0:00:00]} Rxd1+ {[%emt 0:02:30]} 22. Bxd1 {[%emt 0:00:00]} Rd8 {[%emt 0:01:15]} 23. Be2 {[%emt 0:00:00]} Be6 {[%emt 0:01:09]} 24. Ra3 {[%emt 0:00:00]} a6 {[%emt 0:00:24]} 25. Kf2 {[%emt 0:00:00]} 1/2-1/2

[Event "FIDE WCCC Open-12 2024"]
[Site "Montesilvano"]
[Date "2024.11.18"]
[Round "1.73"]
[White "Williams, Henry"]
[Black "Petrovski, Nikola"]
[Result "0-1"]
[ECO "A45"]
[WhiteElo "1695"]
[BlackElo "1829"]
[PlyCount "92"]
[EventDate "2024.11.18"]
[EventType "swiss"]
[EventCountry "ITA"]
[TimeControl "5400+30"]

1. d4 {[%emt 0:00:01]} Nf6 {[%emt 0:00:42]} 2. Bg5 {[%emt 0:00:13]} g6 {[%emt 0:00:42]} 3. Bxf6 {[%emt 0:00:15]} exf6 {[%emt 0:00:08]} 4. e3 {[%emt 0:00:04]} Bg7 {[%emt 0:00:13]} 5. g3 {[%emt 0:00:12]} O-O {[%emt 0:00:11]} 6. Bg2 {[%emt 0:00:10]} d6 {[%emt 0:01:19]} 7. Ne2 {[%emt 0:00:18]} Nc6 {[%emt 0:00:19]} 8. d5 {[%emt 0:00:36]} Ne5 {[%emt 1:30:56]} 9. f4 {[%emt 0:02:14]} Ng4 {[%emt 0:00:00]} 10. Qd2 {[%emt 0:02:31]} Re8 {[%emt 0:00:00]} 11. e4 {[%emt 0:01:14]} f5 {[%emt 0:00:00]} 12. Nbc3 {[%emt 0:01:59]} fxe4 {[%emt 0:00:00]} 13. Bxe4 {[%emt 0:00:56]} Bxc3 {[%emt 0:00:00]} 14. Nxc3 {[%emt 0:04:06]} f5 {[%emt 0:00:00]} 15. Qe2 {[%emt 0:01:56]} Nf6 {[%emt 0:00:00]} 16. Qg2 {[%emt 0:02:43]} Nxe4 {[%emt 0:00:00]} 17. O-O {[%emt 0:01:03]} Bd7 {[%emt 0:00:00]} 18. Rfe1 {[%emt 0:00:33]} Nxc3 {[%emt 0:00:00]} 19. Rxe8+ {[%emt 0:00:20]} Qxe8 {[%emt 0:00:00]} 20. bxc3 {[%emt 0:00:15]} Qe3+ {[%emt 0:00:00]} 21. Qf2 {[%emt 0:00:47]} Re8 {[%emt 0:00:00]} 22. Qxe3 {[%emt 0:00:16]} Rxe3 {[%emt 0:00:00]} 23. Rb1 {[%emt 0:00:18]} b6 {[%emt 0:00:00]} 24. Rb3 {[%emt 0:00:19]} Re2 {[%emt 0:00:00]} 25. Ra3 {[%emt 0:00:27]} a5 {[%emt 0:00:00]} 26. Rb3 {[%emt 0:01:16]} Rxc2 {[%emt 0:00:00]} 27. a4 {[%emt 0:00:17]} Bxa4 {[%emt 0:00:00]} 28. Ra3 {[%emt 0:00:17]} Bb5 {[%emt 0:00:00]} 29. Rb3 {[%emt 0:00:21]} Bc4 {[%emt 0:00:00]} 30. Ra3 {[%emt 0:00:25]} Bxd5 {[%emt 0:00:00]} 31. h4 {[%emt 0:00:19]} Ra2 {[%emt 0:00:00]} 32. Rxa2 {[%emt 0:00:11]} Bxa2 {[%emt 0:00:00]} 33. Kf2 {[%emt 0:00:06]} a4 {[%emt 0:00:00]} 34. Kf3 {[%emt 0:00:08]} a3 {[%emt 0:00:00]} 35. g4 {[%emt 0:00:05]} fxg4+ {[%emt 0:00:00]} 36. Kxg4 {[%emt 0:00:04]} Be6+ {[%emt 0:00:00]} 37. Kf3 {[%emt 0:00:05]} a2 {[%emt 0:00:00]} 38. h5 {[%emt 1:22:10]} a1=Q {[%emt 0:00:00]} 39. hxg6 {[%emt 0:00:00]} Bf5 {[%emt 0:00:00]} 40. gxh7+ {[%emt 0:00:00]} Kxh7 {[%emt 0:00:00]} 41. Kg3 {[%emt 0:00:00]} Qg1+ {[%emt 0:00:00]} 42. Kf3 {[%emt 0:00:00]} Qe1 {[%emt 0:00:00]} 43. c4 {[%emt 0:00:00]} Be4+ {[%emt 0:00:00]} 44. Kg4 {[%emt 0:00:00]} Qg1+ {[%emt 0:00:00]} 45. Kh4 {[%emt 0:00:00]} Bf5 {[%emt 0:00:00]} 46. c5 {[%emt 0:00:00]} Qg4# {[%emt 0:19:00]} 0-1